lending/lending_fUSD_20250920
["ID","MTS","AMOUNT","RATE_DAILY","PERIOD"]
[386545426,1758376239298,-2973.4553,0.0001988,2]
[386545427,1758376239309,-4076.2978,0.0001988,2]
[386545428,1758376239319,-122991.46818264,0.0001988,2]
[386545431,1758376240358,-6861.31640272,0.0001988,2]
[386545432,1758376240369,-3138.22720819,0.0001988,2]
[386545433,1758376240380,-2824.38238829,0.0001988,2]
[386545448,1758376241072,-51018.85331816,0.0001988,2]
[386545449,1758376241082,-1000.0,0.0001988,2]
[386545450,1758376241091,-168.0,0.0001988,2]
[386545451,1758376241101,-8789.76649003,0.00019887,2]
[386545452,1758376241111,-1030.87,0.00019889,2]
[386545453,1758376241120,-7452.98426682,0.0001989,2]
[386545454,1758376241129,-207.074,0.00019891,2]
[386545455,1758376241138,-161.81490232,0.00019891,2]
[386545456,1758376241147,-706.76184541,0.00019891,2]
[386545457,1758376241156,-7452.98426682,0.00019891,2]
[386545458,1758376241166,-7452.98426682,0.00019892,2]
[386545459,1758376241175,-7452.98426682,0.00019893,2]
[386545460,1758376241185,-7452.98426682,0.00019894,2]
[386545461,1758376241195,-7452.98426682,0.00019896,2]
[386545462,1758376241204,-7452.98426682,0.00019897,2]
[386545463,1758376241213,-7452.98426682,0.00019898,2]
[386545464,1758376241223,-7452.98426682,0.00019899,2]
[386545465,1758376241233,-375.08510109,0.000199,2]
[386545466,1758376241243,-638.3584,0.000199,2]
[386545467,1758376241254,-263.61895,0.000199,2]
[386545468,1758376241263,-300.0,0.000199,7]
[386545469,1758376241273,-1916.29409285,0.000199,2]
[386545470,1758376241283,-7452.98426682,0.000199,2]
[386545471,1758376241292,-1029.0,0.000199,2]
[386545472,1758376241302,-186.72544564,0.000199,2]
[386545473,1758376241312,-8789.76649003,0.000199,2]
[386545474,1758376241321,-1000.0,0.00019904,2]
[386545475,1758376241331,-1000.0,0.00019907,2]
[386545476,1758376241340,-5803.73139961,0.00019908,2]
[386545477,1758376241351,-503.0,0.00019918,2]
[386545478,1758376241362,-150.0,0.00019927,2]
[386545479,1758376241371,-150.0,0.00019932,2]
[386545480,1758376241381,-1425.0,0.00019949,2]
[386545481,1758376241390,-1000.0,0.00019966,2]
[386545482,1758376241399,-168.0,0.00019967,2]
[386545483,1758376241408,-500.0,0.00019973,2]
[386545484,1758376241417,-500.0,0.00019973,2]
[386545485,1758376241427,-503.57109575,0.00019973,2]
[386545486,1758376241436,-500.0,0.00019973,2]
[386545487,1758376241445,-500.08876036,0.00019973,2]
[386545488,1758376241455,-500.0,0.00019973,2]
[386545489,1758376241465,-589.1087581,0.00019973,2]
[386545490,1758376241475,-500.0,0.00019973,2]
[386545491,1758376241484,-500.0,0.00019973,2]
[386545492,1758376241494,-500.0,0.00019973,2]
[386545493,1758376241504,-501.15187679,0.00019973,2]
[386545494,1758376241514,-500.0,0.00019973,2]
[386545495,1758376241523,-159.98545932,0.00019973,2]
[386545496,1758376241533,-500.0,0.00019973,2]
[386545497,1758376241543,-500.0,0.00019973,2]
[386545498,1758376241552,-500.0,0.00019973,2]
[386545499,1758376241563,-387.51284457,0.00019973,2]
[386545500,1758376241574,-502.5083868,0.00019973,2]
[386545501,1758376241584,-500.0,0.00019973,2]
[386545502,1758376241593,-500.0,0.00019973,2]
[386545503,1758376241603,-500.0,0.00019973,2]
[386545504,1758376241613,-211.51172925,0.00019973,2]
[386545505,1758376241622,-500.0,0.00019973,2]
[386545506,1758376241631,-501.28133671,0.00019973,2]
[386545507,1758376241640,-530.6808114,0.00019973,2]
[386545508,1758376241649,-500.0,0.00019973,2]
[386545509,1758376241658,-505.37459811,0.00019973,2]
[386545510,1758376241667,-500.4200175,0.00019973,2]
[386545511,1758376241677,-500.0,0.00019973,2]
[386545512,1758376241686,-500.0,0.00019973,2]
[386545513,1758376241695,-420.53549666,0.00019973,2]
[386545514,1758376241704,-505.14186499,0.00019973,2]
[386545515,1758376241714,-502.32973565,0.00019973,2]
[386545516,1758376241723,-500.0,0.00019973,2]
[386545517,1758376241732,-506.8913289,0.00019973,2]
[386545518,1758376241741,-150.0,0.00019976,2]
[386545519,1758376241751,-151.0,0.00019987,2]
[386545520,1758376241760,-595.22214311,0.0001999,2]
[386545521,1758376241770,-595.22214311,0.0001999,2]
[386545522,1758376241779,-595.22214311,0.0001999,2]
[386545523,1758376241788,-151.25,0.0001999,2]
[386545524,1758376241797,-151.25,0.0001999,2]
[386545525,1758376241807,-151.25,0.0001999,2]
[386545526,1758376241815,-151.25,0.0001999,2]
[386545527,1758376241825,-151.25,0.0001999,2]
[386545528,1758376241834,-151.25,0.0001999,2]
[386545529,1758376241847,-151.25,0.0001999,2]
[386545530,1758376241856,-151.25,0.0001999,2]
[386545531,1758376241866,-151.25,0.0001999,2]
[386545532,1758376241875,-151.25,0.0001999,2]
[386545533,1758376241884,-151.25,0.0001999,2]
[386545534,1758376241893,-151.25,0.0001999,2]
[386545535,1758376241903,-151.25,0.0001999,2]
[386545536,1758376241912,-151.25,0.0001999,2]
[386545537,1758376241922,-151.25,0.0001999,2]
[386545538,1758376241931,-151.25,0.0001999,2]
[386545539,1758376241941,-151.25,0.0001999,2]
[386545540,1758376241950,-151.25,0.0001999,2]
[386545541,1758376241961,-151.25,0.0001999,2]
[386545542,1758376241970,-151.25,0.0001999,2]
[386545543,1758376241979,-151.25,0.0001999,2]
[386545544,1758376241988,-151.25,0.0001999,2]
[386545545,1758376241999,-151.25,0.0001999,2]
[386545546,1758376242008,-151.25,0.0001999,2]
[386545547,1758376242017,-151.25,0.0001999,2]
[386545548,1758376242029,-151.25,0.0001999,2]
[386545549,1758376242041,-151.25,0.0001999,2]
[386545550,1758376242050,-151.25,0.0001999,2]
[386545551,1758376242059,-151.25,0.0001999,2]
[386545552,1758376242069,-151.25,0.0001999,2]
[386545553,1758376242079,-151.25,0.0001999,2]
[386545554,1758376242088,-151.25,0.0001999,2]
[386545555,1758376242098,-151.25,0.0001999,2]
[386545556,1758376242108,-151.25,0.0001999,2]
[386545557,1758376242117,-151.25,0.0001999,2]
[386545558,1758376242127,-151.25,0.0001999,2]
[386545559,1758376242135,-151.25,0.0001999,2]
[386545560,1758376242145,-151.25,0.0001999,2]
[386545561,1758376242154,-151.25,0.0001999,2]
[386545562,1758376242163,-151.25,0.0001999,2]
[386545563,1758376242172,-151.25,0.0001999,2]
[386545564,1758376242182,-151.25,0.0001999,2]
[386545565,1758376242191,-151.25,0.0001999,2]
[386545566,1758376242200,-151.25,0.0001999,2]
[386545567,1758376242209,-151.25,0.0001999,2]
[386545568,1758376242218,-151.25,0.0001999,2]
[386545569,1758376242227,-151.25,0.0001999,2]
[386545570,1758376242237,-151.25,0.0001999,2]
[386545571,1758376242247,-151.25,0.0001999,2]
[386545572,1758376242256,-151.25,0.0001999,2]
[386545573,1758376242265,-151.25,0.0001999,2]
[386545574,1758376242275,-151.25,0.0001999,2]
[386545575,1758376242284,-151.25,0.0001999,2]
[386545576,1758376242293,-151.25,0.0001999,2]
[386545577,1758376242303,-151.25,0.0001999,2]
[386545578,1758376242313,-151.25,0.0001999,2]
[386545579,1758376242583,-151.25,0.0001999,2]
[386545580,1758376242594,-151.25,0.0001999,2]
[386545581,1758376242603,-151.25,0.0001999,2]
[386545582,1758376242612,-151.25,0.0001999,2]
[386545583,1758376242621,-151.25,0.0001999,2]
[386545584,1758376242630,-151.25,0.0001999,2]
[386545585,1758376242639,-151.25,0.0001999,2]
[386545586,1758376242650,-151.25,0.0001999,2]
[386545587,1758376242659,-151.25,0.0001999,2]
[386545588,1758376242668,-168.0,0.00019995,2]
[386545589,1758376242678,-4969.7533229,0.00019997,2]
[386545590,1758376242688,-169.075507,0.00019997,5]
[386545591,1758376242697,-151.0,0.00019997,2]
[386545592,1758376242706,-151.0,0.00019998,2]
[386545593,1758376242715,-300.0,0.00019999,2]
[386545594,1758376242724,-300.0,0.00019999,2]
[386545595,1758376242735,-155.86,0.00019999,2]
[386545596,1758376242744,-150.0,0.00019999,2]
[386545597,1758376242753,-201.39189227,0.00019999,2]
[386545598,1758376242763,-150.0,0.00019999,2]
[386545599,1758376242773,-150.0,0.00019999,2]
[386545600,1758376242783,-150.0,0.00019999,2]
[386545601,1758376242792,-150.0,0.00019999,2]
[386545602,1758376242802,-500.0,0.00019999,2]
[386545603,1758376242811,-264.02708365,0.00019999,2]
[386545604,1758376242821,-150.0,0.00019999,2]
[386545605,1758376242830,-150.0,0.00019999,2]
[386545606,1758376242843,-150.32338469,0.00019999,2]
[386545607,1758376242855,-150.0,0.00019999,2]
[386545608,1758376242864,-1000.0,0.00019999,2]
[386545609,1758376242873,-150.39379499,0.00019999,2]
[386545610,1758376242883,-150.0,0.00019999,2]
[386545611,1758376242892,-150.0,0.00019999,2]
[386545612,1758376242902,-152.91826207,0.00019999,2]
[386545613,1758376242912,-1000.0,0.00019999,2]
[386545614,1758376242922,-53577.8287466,0.00019999,2]
[386545615,1758376242931,-512.0,0.00019999,2]
[386545616,1758376242941,-150.0,0.00019999,2]
[386545617,1758376242950,-150.0,0.00019999,2]
[386545618,1758376242959,-500.0,0.00019999,2]
[386545619,1758376242969,-500.0,0.00019999,2]
[386545620,1758376242979,-150.0,0.00019999,2]
[386545621,1758376242988,-500.0,0.00019999,2]
[386545622,1758376242997,-500.0,0.00019999,2]
[386545623,1758376243007,-150.0,0.00019999,2]
[386545624,1758376243016,-500.0,0.00019999,2]
[386545625,1758376243025,-150.0,0.00019999,2]
[386545626,1758376243035,-966.0,0.00019999,2]
[386545627,1758376243044,-150.0,0.00019999,2]
[386545628,1758376243054,-500.0,0.00019999,2]
[386545629,1758376243064,-150.0,0.00019999,2]
[386545630,1758376243074,-150.0,0.00019999,2]
[386545631,1758376243088,-150.0,0.00019999,2]
[386545632,1758376243098,-500.0,0.00019999,2]
[386545634,1758376243108,-150.0,0.00019999,2]
[386545635,1758376243121,-150.0,0.00019999,2]
[386545636,1758376243130,-500.0,0.00019999,2]
[386545637,1758376243140,-525.0,0.00019999,2]
[386545638,1758376243150,-150.0,0.00019999,2]
[386545639,1758376243160,-150.0,0.00019999,2]
[386545640,1758376243169,-150.0,0.00019999,2]
[386545641,1758376243179,-1130.0,0.00019999,2]
[386545642,1758376243189,-609.0,0.00019999,2]
[386545643,1758376243198,-500.0,0.00019999,2]
[386545644,1758376243208,-495.0,0.00019999,2]
[386545645,1758376243217,-770.0,0.00019999,2]
[386545646,1758376243226,-150.0,0.00019999,2]
[386545647,1758376243236,-150.0,0.00019999,2]
[386545648,1758376243246,-150.0,0.00019999,2]
[386545650,1758376243256,-153.27379641,0.00019999,2]
[386545651,1758376243265,-150.0,0.00019999,2]
[386545652,1758376243275,-500.0,0.00019999,2]
[386545653,1758376243285,-2990.0,0.00019999,2]
[386545654,1758376243294,-5428.20433007,0.0002,2]
[386545655,1758376243304,-197.21115095,0.0002,2]
[386545656,1758376243314,-1753611.6916893,0.0002,2]
[386545657,1758376243323,-36990.68542478,0.0002,2]
[386545658,1758376243333,-3950.0,0.0002,2]
[386545659,1758376243343,-121570.18271788,0.0002,2]
[386545660,1758376243353,-1274.95373995,0.0002,2]
[386545661,1758376243362,-7263.28079946,0.0002,2]
[386545662,1758376243371,-199.9782368,0.0002,3]
[386545663,1758376243381,-519.36901807,0.0002,7]
[386545664,1758376243390,-150.0,0.0002,2]
[386545665,1758376243399,-3049.77032457,0.0002,5]
[386545666,1758376243409,-1029.13877916,0.0002,2]
[386545667,1758376243418,-2819.4946404,0.0002,2]
[386545668,1758376243427,-90643.83026293,0.0002,2]
[386545669,1758376243437,-100000.0,0.0002,2]
[386545670,1758376243446,-41282.13992279,0.0002,2]
[386545671,1758376243463,-9030.68565188,0.0002,2]
[386545672,1758376243500,-1561.14532105,0.0002,2]
[386545673,1758376243514,-16486.02065558,0.0002,2]
[386545674,1758376243546,-151.25,0.0001999,2]
[386545675,1758376243556,-27856.28560648,0.0002,2]
[386545676,1758376243583,-1726.146,0.0002,2]
[386545677,1758376243822,-19.76846431,0.0001999,2]
[386545698,1758376245552,-131.48153569,0.0001999,2]
[386545699,1758376245567,-151.25,0.0001999,2]
[386545700,1758376245582,-151.25,0.0001999,2]
[386545701,1758376245597,-151.25,0.0001999,2]
[386545702,1758376245612,-151.25,0.0001999,2]
[386545703,1758376245627,-151.25,0.0001999,2]
[386545704,1758376245643,-151.25,0.0001999,2]
[386545705,1758376245659,-151.25,0.0001999,2]
[386545706,1758376245675,-151.25,0.0001999,2]
[386545707,1758376245690,-151.25,0.0001999,2]
[386545708,1758376245705,-151.25,0.0001999,2]
[386545709,1758376245720,-151.25,0.0001999,2]
[386545710,1758376245736,-151.25,0.0001999,2]
[386545711,1758376245753,-151.25,0.0001999,2]
[386545712,1758376245768,-151.25,0.0001999,2]
[386545713,1758376245783,-151.25,0.0001999,2]
[386545714,1758376245798,-151.25,0.0001999,2]
[386545715,1758376245813,-27481.3696518,0.0002,2]
[386545716,1758376245839,-908.67000001,0.0002,2]
[386545717,1758376245917,-4423.7239837,0.0002,2]
[386545727,1758376246852,-252.04243568,0.00019999,2]
[386545728,1758376246861,-7229.91866891,0.0002,2]
[386545729,1758376246872,-458.56562217,0.0002,2]
[386545730,1758376246889,-565.0373289,0.0002,2]
[386545733,1758376248126,-175.61681373,0.00019791,2]
[386545734,1758376248136,-15381.29057028,0.0002,2]
[386545735,1758376248147,-726.84785614,0.0002,2]
[386545736,1758376248158,-840.74490762,0.0002,2]
[386545737,1758376248169,-17111.15567434,0.0002,2]
[386545738,1758376248193,-184486.92069512,0.0002,2]
[386545739,1758376248203,-49687.17442533,0.0002,2]
[386545740,1758376248214,-200000.03813607,0.0002,2]
[386545741,1758376248223,-247036.69234461,0.0002,2]
[386545742,1758376248242,-20802.25543905,0.0002,2]
[386545743,1758376248254,-154041.45332052,0.0002,2]
[386545744,1758376248264,-100000.0,0.0002,2]
[386545745,1758376248273,-2876.77,0.0002,2]
[386545746,1758376248283,-500.0,0.0002,2]
[386545747,1758376248292,-500.0,0.0002,2]
[386545748,1758376248302,-467223.11585767,0.0002,2]
[386545749,1758376286569,-331.3208238,0.00019246,2]
[386545763,1758376368567,-173.36,0.00019053,2]
[386545772,1758376382494,-687.27185454,0.00019025,2]
[386545778,1758376389618,-646.79,0.00019025,2]
[386545779,1758376396697,-612.59314127,0.00019025,2]
[386545780,1758376404386,-207.12,0.00019025,2]
[386545784,1758376434651,-26.61500419,0.00019025,2]
[386545785,1758376434681,-26.64,0.00019053,2]
[386545786,1758376434712,-60.8691762,0.00019246,2]
[386545787,1758376434838,-71.75163922,0.00019274,2]
[386545790,1758376470481,150.0,0.00018979,7]
[386545819,1758376518536,169.075507,0.00018593,7]
[386545822,1758376578142,169.075507,0.00018991,5]
[386545825,1758376583878,1153.6,0.00019,5]
[386545826,1758376585349,-167.43901886,0.00018957,2]
[386545827,1758376593036,-219.57927548,0.00018936,2]
[386545828,1758376597287,250.0,0.00015,2]
[386545829,1758376598365,255.73740251,0.00017,2]
[386545830,1758376598392,44.26259749,0.00017,2]
[386545833,1758376628821,-5.0812949,0.000189,2]
[386545834,1758376628844,-144.9187051,0.000189,2]
[386545835,1758376637705,-151.0,0.00018909,2]
[386545848,1758376691343,-20.59,0.00018909,2]
[386545849,1758376691380,-94.61887806,0.00018922,2]
[386545850,1758376691784,-205.38112194,0.00018922,2]
[386545916,1758376712340,410.3,0.00019,5]
[386545918,1758376743246,300.0,0.00030136,120]
[386545956,1758376760063,219.0,0.00018524,2]
[386546016,1758376912393,160.75,0.00016712,2]
[386546078,1758377008645,3615.35,0.00030136,120]
[386546103,1758377115712,150.0,0.00018,2]
[386546104,1758377118136,150.0,0.00018,2]
[386546105,1758377118176,150.0,0.00018,2]
[386546107,1758377122926,150.0,0.00018,2]
[386546108,1758377124080,150.0,0.00018,2]
[386546109,1758377125400,150.0,0.00018,2]
[386546110,1758377125465,150.0,0.00018,2]
[386546111,1758377128430,151.18438881,0.00018,2]
[386546114,1758377130465,150.93176829,0.00018,2]
[386546115,1758377130579,150.0,0.00018,2]
[386546116,1758377135583,-30.42072452,0.00018936,2]
[386546117,1758377135613,-66.30966539,0.00018946,2]
[386546118,1758377135661,-106.53922018,0.00018946,2]
[386546119,1758377137897,150.0,0.00018,2]
[386546120,1758377138821,216.82834675,0.00018,2]
[386546121,1758377138877,150.0,0.00018,2]
[386546122,1758377140379,150.0,0.00018,2]
[386546123,1758377151165,150.0,0.00018,2]
[386546136,1758377255010,1008.199138,0.00017837,2]
[386546137,1758377255307,1008.199138,0.00017801,2]
[386546138,1758377255636,1008.199138,0.00017651,2]
[386546139,1758377255939,1008.199138,0.00017651,2]
[386546140,1758377256234,1008.199138,0.0001765,2]
[386546141,1758377256764,1008.199138,0.00017615,2]
[386546142,1758377256984,1008.199138,0.0001756,2]
[386546143,1758377257453,1008.199138,0.00017559,2]
[386546144,1758377257850,1008.199138,0.00017555,2]
[386546145,1758377258201,1008.199138,0.00017451,2]
[386546146,1758377258440,1008.199138,0.00017448,2]
[386546147,1758377258747,1008.199138,0.00017441,2]
[386546148,1758377259217,158.65324266,0.00017404,2]
[386546149,1758377259241,849.54589534,0.00017404,2]
[386546150,1758377259518,362.58003776,0.00017404,2]
[386546151,1758377259542,645.61910024,0.00017404,2]
[386546152,1758377259859,1008.199138,0.00017403,2]
[386546153,1758377260229,1008.199138,0.00017369,2]
[386546154,1758377260399,180.188297,0.00017837,2]
[386546155,1758377260649,1008.199138,0.00017368,2]
[386546156,1758377260717,180.188297,0.00017801,2]
[386546157,1758377260972,1008.199138,0.00017345,2]
[386546158,1758377261021,180.188297,0.00017651,2]
[386546159,1758377261288,1008.199138,0.00017313,2]
[386546160,1758377261339,180.188297,0.00017651,2]
[386546161,1758377262285,1008.199138,0.00017308,2]
[386546163,1758377262703,1008.199138,0.00017306,2]
[386546164,1758377262913,180.188297,0.0001765,2]
[386546165,1758377263039,180.188297,0.00017615,2]
[386546167,1758377263298,180.188297,0.0001756,2]
[386546168,1758377263674,180.188297,0.00017559,2]
[386546169,1758377264011,180.188297,0.00017555,2]
[386546170,1758377264350,180.188297,0.00017451,2]
[386546171,1758377264692,180.188297,0.00017448,2]
[386546172,1758377265699,180.188297,0.00017441,2]
[386546173,1758377266093,180.188297,0.00017404,2]
[386546174,1758377266380,180.188297,0.00017404,2]
[386546175,1758377266419,153.010661,0.00017837,2]
[386546176,1758377266707,153.010661,0.00017801,2]
[386546177,1758377266739,180.188297,0.00017403,2]
[386546178,1758377267023,153.010661,0.00017651,2]
[386546179,1758377267063,180.188297,0.00017369,2]
[386546180,1758377267370,180.188297,0.00017368,2]
[386546181,1758377267507,153.010661,0.0001756,2]
[386546182,1758377267812,153.010661,0.00017451,2]
[386546183,1758377268476,180.188297,0.00017345,2]
[386546184,1758377268818,153.010661,0.00017441,2]
[386546185,1758377268869,180.188297,0.00017313,2]
[386546186,1758377269181,180.188297,0.00017308,2]
[386546187,1758377269215,153.010661,0.00017404,2]
[386546188,1758377269492,180.188297,0.00017306,2]
[386546189,1758377269538,153.010661,0.00017368,2]
[386546190,1758377269822,153.010661,0.00017308,2]
[386546200,1758377334815,156.35,9.323e-05,2]
[386546201,1758377334907,156.35,0.00010359,2]
[386546202,1758377335273,156.35,0.00011394,2]
[386546203,1758377335504,156.35,0.0001243,2]
[386546204,1758377335730,156.35,0.00013466,2]
[386546205,1758377335949,156.35,0.00014502,2]
[386546206,1758377336157,156.35,0.00015538,2]
[386546207,1758377336357,156.35,0.00016574,2]
[386546208,1758377336554,156.35,0.0001761,2]
[386546217,1758377380010,-500.0,0.00018796,3]
[386546222,1758377408331,-500.0,0.00018796,3]
[386546226,1758377431777,-156.35,0.00018646,2]
[386546227,1758377431788,-179.12547823,0.00018796,3]
[386546228,1758377431799,-840.92452177,0.00018796,3]
[386546229,1758377431809,-32.56098114,0.00018957,2]
[386546230,1758377431818,-151.0,0.00018964,2]
[386546231,1758377431828,-151.0,0.00018968,2]
[386546232,1758377431838,-151.0,0.00018972,2]
[386546233,1758377431847,-151.0,0.0001898,2]
[386546234,1758377431857,-160.0,0.00019075,2]
[386546235,1758377431868,-1200.0,0.00019171,2]
[386546236,1758377431877,-300.0,0.00019171,2]
[386546237,1758377431887,-516.38316968,0.00019172,2]
[386546238,1758377431897,-408.89920287,0.00019172,2]
[386546239,1758377431955,-168.46583176,0.00019172,2]
[386546240,1758377431964,-457.71812326,0.00019172,2]
[386546241,1758377431974,-169.76761645,0.00019172,2]
[386546242,1758377431983,-619.72710328,0.00019172,2]
[386546243,1758377431992,-500.0,0.00019172,2]
[386546244,1758377432002,-61.43732525,0.00019172,2]
[386546245,1758377432014,-428.0,0.00019172,2]
[386546246,1758377432050,-10.56267475,0.00019172,2]
[386546247,1758377432060,-300.0,0.00019177,2]
[386546248,1758377432070,-666.11802937,0.00019178,2]
[386546249,1758377432082,-333.88197063,0.00019178,2]
[386546250,1758377432092,-155.720448,0.00019178,2]
[386546251,1758377432102,-239.68289784,0.00019274,2]
[386546252,1758377432114,-7.56546294,0.00019274,2]
[386546253,1758377432124,-213.32528632,0.00019485,2]
[386546254,1758377432134,-222.0,0.00019495,2]
[386546255,1758377432144,-685.22081787,0.00019499,2]
[386546256,1758377432185,-45.77918213,0.00019499,2]
[386546257,1758377432194,-670.86077674,0.000195,2]
[386546271,1758377432320,-392.13922326,0.000195,2]
[386546275,1758377432330,-155.0,0.000195,2]
[386546278,1758377432339,-199.0,0.0001952,2]
[386546280,1758377432349,-150.0,0.00019521,2]
[386546282,1758377432358,-379.97,0.000196,2]
[386546284,1758377432367,-240.78,0.00019605,2]
[386546286,1758377432377,-322.6107,0.00019668,2]
[386546288,1758377432386,-3976.6657,0.0001968,2]
[386546290,1758377432396,-2123.1882,0.0001968,2]
[386546292,1758377432406,-1000.0,0.000197,2]
[386546294,1758377432415,-1000.0,0.00019726,2]
[386546296,1758377432424,-760.06764174,0.00019728,2]
[386546298,1758377432434,-150.0,0.00019729,2]
[386546300,1758377432443,-150.0,0.00019739,2]
[386546302,1758377432453,-152.07500255,0.00019741,2]
[386546304,1758377432464,-150.0,0.00019753,2]
[386546306,1758377432473,-150.0,0.00019762,2]
[386546308,1758377432483,-1000.0,0.00019773,2]
[386546310,1758377432492,-150.0,0.00019779,2]
[386546312,1758377432502,-65745.91451136,0.0001978,2]
[386546314,1758377432518,-45684.46278864,0.0001978,2]
[386546316,1758377432527,-1102.90539,0.000198,2]
[386546318,1758377432537,-460.99885187,0.000198,2]
[386546321,1758377432548,-460.99885181,0.00019811,2]
[386546323,1758377432558,-173.36,0.00019812,2]
[386546325,1758377432567,-460.99885181,0.00019822,2]
[386546327,1758377432576,-150.0,0.00019826,2]
[386546329,1758377432586,-460.99885181,0.00019833,2]
[386546331,1758377432595,-200.0,0.0001984,2]
[386546333,1758377432605,-460.99885181,0.00019844,2]
[386546335,1758377432614,-460.99885181,0.00019856,2]
[386546337,1758377432624,-150.0,0.00019857,2]
[386546339,1758377432634,-460.99885181,0.00019867,2]
[386546341,1758377432643,-460.99885181,0.00019878,2]
[386546343,1758377432654,-165.659,0.0001988,2]
[386546345,1758377432664,-1000.0,0.0001988,2]
[386546347,1758377432675,-2500.0,0.0001988,2]
[386546349,1758377432684,-460.99885181,0.00019889,2]
[386546351,1758377432696,-219.57927548,0.00019889,2]
[386546353,1758377432705,-200.0,0.00019893,2]
[386546355,1758377432715,-200.0,0.00019893,2]
[386546357,1758377432725,-200.0,0.00019893,2]
[386546359,1758377432735,-200.0,0.00019893,2]
[386546361,1758377432746,-200.0,0.00019893,2]
[386546363,1758377432756,-200.0,0.00019893,2]
[386546365,1758377432765,-200.0,0.00019893,2]
[386546367,1758377432775,-200.0,0.00019893,2]
[386546369,1758377432784,-200.0,0.00019893,2]
[386546371,1758377432794,-200.0,0.00019893,2]
[386546373,1758377432803,-200.0,0.00019893,2]
[386546375,1758377432813,-200.0,0.00019893,2]
[386546377,1758377432823,-200.0,0.00019893,2]
[386546379,1758377432832,-200.0,0.00019893,2]
[386546381,1758377432842,-200.0,0.00019893,2]
[386546383,1758377432853,-200.0,0.00019893,2]
[386546385,1758377432863,-200.0,0.00019893,2]
[386546388,1758377432874,-200.0,0.00019893,2]
[386546390,1758377432884,-200.0,0.00019893,2]
[386546392,1758377432894,-200.0,0.00019893,2]
[386546394,1758377432903,-800.0,0.00019893,2]
[386546396,1758377432913,-800.0,0.00019893,2]
[386546398,1758377432922,-800.0,0.00019893,2]
[386546400,1758377432931,-800.0,0.00019893,2]
[386546402,1758377432941,-800.0,0.00019893,2]
[386546404,1758377432950,-4174.0,0.00019895,2]
[386546406,1758377432959,-4229.0,0.00019895,2]
[386546408,1758377432969,-898.0,0.00019895,2]
[386546410,1758377432978,-179.44103289,0.00019898,2]
[386546412,1758377432988,-32553.49100497,0.000199,2]
[386546414,1758377432997,-426.81861246,0.000199,2]
[386546416,1758377433006,-161.41597136,0.000199,2]
[386546417,1758377433015,-3924.29288202,0.000199,2]
[386546420,1758377433137,-477.79499851,0.00019499,2]
[386546422,1758377433147,-175.56853326,0.00019499,2]
[386546424,1758377433157,-654.85255463,0.000199,2]
[386546427,1758377433169,-401.1595032,0.000199,2]
[386546429,1758377433181,-19.69506015,0.000199,2]
[386546431,1758377433191,-1102.9054,0.000199,2]
[386546433,1758377433200,-158.80503524,0.000199,2]
[386546435,1758377433210,-1422.26729599,0.000199,2]
[386546437,1758377433220,-460.99885181,0.000199,2]
[386546439,1758377433230,-744.68923072,0.000199,2]